lending/lending_fUSD_20260325
["ID","MTS","AMOUNT","RATE_DAILY","PERIOD"]
[408894511,1774404633879,-427.0,0.00014835,2]
[408894512,1774404633888,-500.0,0.00014835,2]
[408894513,1774404633898,-500.0,0.00014835,2]
[408894514,1774404633907,-701.0,0.00014835,2]
[408894515,1774404633917,-427.0,0.00014835,2]
[408894516,1774404633926,-500.0,0.00014835,2]
[408894517,1774404633936,-500.0,0.00014835,2]
[408894518,1774404633946,-427.0,0.00014835,2]
[408894519,1774404633955,-427.0,0.00014835,2]
[408894520,1774404633964,-500.0,0.00014835,2]
[408894521,1774404633973,-427.0,0.00014835,2]
[408894522,1774404633982,-500.0,0.00014835,2]
[408894523,1774404633992,-427.0,0.00014835,2]
[408894524,1774404634001,-500.0,0.00014835,2]
[408894525,1774404634010,-701.0,0.00014835,2]
[408894526,1774404634020,-548.88212838,0.00014835,2]
[408894527,1774404634029,-427.0,0.00014835,2]
[408894528,1774404634040,-500.0,0.00014835,2]
[408894529,1774404634049,-501.3507046,0.00014835,2]
[408894530,1774404634061,-427.0,0.00014835,2]
[408894531,1774404634070,-487.0,0.00014835,2]
[408894532,1774404634079,-487.0,0.00014835,2]
[408894533,1774404634089,-487.0,0.00014835,2]
[408894534,1774404634098,-487.0,0.00014835,2]
[408894535,1774404634107,-427.0,0.00014835,2]
[408894536,1774404634116,-701.0,0.00014835,2]
[408894537,1774404634126,-487.0,0.00014835,2]
[408894538,1774404634135,-487.0,0.00014835,2]
[408894539,1774404634144,-487.0,0.00014835,2]
[408894540,1774404634153,-487.0,0.00014835,2]
[408894541,1774404634162,-487.0,0.00014835,2]
[408894542,1774404634171,-487.0,0.00014835,2]
[408894543,1774404634181,-427.0,0.00014835,2]
[408894544,1774404634190,-487.0,0.00014835,2]
[408894545,1774404634200,-487.0,0.00014835,2]
[408894546,1774404634210,-487.0,0.00014835,2]
[408894547,1774404634219,-487.0,0.00014835,2]
[408894548,1774404634229,-701.0,0.00014835,2]
[408894549,1774404634238,-487.0,0.00014835,2]
[408894550,1774404634247,-487.0,0.00014835,2]
[408894551,1774404634257,-487.0,0.00014835,2]
[408894552,1774404634266,-427.0,0.00014835,2]
[408894553,1774404634275,-487.0,0.00014835,2]
[408894554,1774404634284,-701.0,0.00014835,2]
[408894555,1774404634293,-427.0,0.00014835,2]
[408894556,1774404634304,-487.0,0.00014835,2]
[408894557,1774404634313,-487.0,0.00014835,2]
[408894558,1774404634322,-701.0,0.00014835,2]
[408894559,1774404634331,-427.0,0.00014835,2]
[408894560,1774404634340,-487.0,0.00014835,2]
[408894561,1774404634349,-722.93165508,0.00014835,2]
[408894562,1774404634358,-427.0,0.00014835,2]
[408894563,1774404634367,-487.0,0.00014835,2]
[408894564,1774404634376,-427.0,0.00014835,2]
[408894565,1774404634385,-487.0,0.00014835,2]
[408894566,1774404634394,-446.66226125,0.00014835,2]
[408894567,1774404634403,-510.90357367,0.00014835,2]
[408894568,1774404634412,-500.0,0.00014838,2]
[408894569,1774404634421,-500.0,0.00014838,2]
[408894570,1774404634431,-500.0,0.00014838,2]
[408894571,1774404634441,-500.0,0.00014838,2]
[408894572,1774404634450,-500.0,0.00014838,2]
[408894573,1774404634459,-500.0,0.00014838,2]
[408894574,1774404634468,-500.0,0.00014838,2]
[408894575,1774404634477,-500.0,0.00014838,2]
[408894576,1774404634486,-500.0,0.00014838,2]
[408894577,1774404634495,-500.0,0.00014838,2]
[408894578,1774404634507,-500.0,0.00014838,2]
[408894579,1774404634516,-500.0,0.00014838,2]
[408894580,1774404634526,-500.0,0.00014838,2]
[408894581,1774404634535,-500.0,0.00014838,2]
[408894582,1774404634544,-500.0,0.00014838,2]
[408894583,1774404634555,-500.0,0.00014838,2]
[408894584,1774404634564,-500.0,0.00014838,2]
[408894585,1774404634573,-500.0,0.00014838,2]
[408894586,1774404634582,-500.0,0.00014838,2]
[408894587,1774404634592,-303.64670492,0.00014838,2]
[408894588,1774404634600,-500.0,0.00014838,2]
[408894589,1774404634609,-150.0,0.00014838,2]
[408894590,1774404634618,-500.0,0.00014838,2]
[408894591,1774404634628,-500.0,0.00014838,2]
[408894592,1774404634639,-500.0,0.00014838,2]
[408894593,1774404634648,-355.90169479,0.00014838,2]
[408894594,1774404634657,-500.0,0.00014838,2]
[408894595,1774404634667,-500.0,0.00014838,2]
[408894596,1774404634676,-157.46512883,0.00014838,2]
[408894597,1774404634685,-500.0,0.00014838,2]
[408894598,1774404634694,-500.0,0.00014838,2]
[408894599,1774404634703,-500.0,0.00014838,2]
[408894600,1774404634712,-640.72146414,0.00014838,2]
[408894601,1774404634721,-500.0,0.00014838,2]
[408894602,1774404634730,-500.0,0.00014838,2]
[408894603,1774404634739,-500.0,0.00014838,2]
[408894604,1774404634748,-500.0,0.00014838,2]
[408894605,1774404634757,-500.0,0.00014838,2]
[408894606,1774404634766,-500.0,0.00014838,2]
[408894607,1774404634775,-500.0,0.00014838,2]
[408894608,1774404634784,-500.0,0.00014838,2]
[408894609,1774404634793,-322.19877403,0.00014838,2]
[408894610,1774404634802,-500.0,0.00014838,2]
[408894611,1774404634811,-500.0,0.00014838,2]
[408894612,1774404634821,-500.0,0.00014838,2]
[408894613,1774404634830,-500.0,0.00014838,2]
[408894614,1774404634839,-500.0,0.00014838,2]
[408894615,1774404634848,-500.0,0.00014838,2]
[408894616,1774404634858,-500.0,0.00014838,2]
[408894617,1774404634867,-155.72643063,0.00014838,2]
[408894618,1774404634877,-632.06422146,0.00014838,2]
[408894619,1774404634886,-500.0,0.00014838,2]
[408894620,1774404634896,-593.49468119,0.00014838,2]
[408894621,1774404634905,-150.0,0.00014838,2]
[408894622,1774404634914,-500.0,0.00014838,2]
[408894623,1774404634924,-213.79045008,0.00014838,2]
[408894624,1774404634933,-500.0,0.00014838,2]
[408894625,1774404634942,-500.0,0.00014838,2]
[408894626,1774404634952,-150.0,0.00014838,2]
[408894627,1774404634961,-500.0,0.00014838,2]
[408894628,1774404634971,-207.61177602,0.00014838,2]
[408894629,1774404634980,-500.0,0.00014838,2]
[408894630,1774404634990,-500.0,0.00014838,2]
[408894631,1774404635000,-500.0,0.00014838,2]
[408894632,1774404635010,-500.0,0.00014838,2]
[408894633,1774404635019,-500.0,0.00014838,2]
[408894634,1774404635028,-413.12643077,0.00014838,2]
[408894635,1774404635037,-340.00340413,0.00014838,2]
[408894636,1774404635046,-150.0,0.00014838,2]
[408894637,1774404635056,-151.10510963,0.00014838,2]
[408894638,1774404635065,-500.0,0.00014838,2]
[408894639,1774404635074,-480.0,0.00014838,2]
[408894640,1774404635083,-500.0,0.00014838,2]
[408894641,1774404635092,-500.0,0.00014838,2]
[408894642,1774404635102,-480.0,0.00014838,2]
[408894643,1774404635110,-500.0,0.00014838,2]
[408894644,1774404635120,-547.0,0.00014838,2]
[408894645,1774404635131,-500.0,0.00014838,2]
[408894646,1774404635140,-480.0,0.00014838,2]
[408894647,1774404635150,-500.0,0.00014838,2]
[408894648,1774404635159,-500.0,0.00014838,2]
[408894649,1774404635168,-547.0,0.00014838,2]
[408894650,1774404635178,-500.0,0.00014838,2]
[408894651,1774404635187,-480.0,0.00014838,2]
[408894652,1774404635196,-547.0,0.00014838,2]
[408894653,1774404635205,-500.0,0.00014838,2]
[408894654,1774404635214,-500.0,0.00014838,2]
[408894655,1774404635224,-480.0,0.00014838,2]
[408894656,1774404635233,-547.0,0.00014838,2]
[408894657,1774404635242,-500.0,0.00014838,2]
[408894658,1774404635251,-500.0,0.00014838,2]
[408894659,1774404635260,-500.0,0.00014838,2]
[408894660,1774404635269,-480.0,0.00014838,2]
[408894661,1774404635278,-547.0,0.00014838,2]
[408894662,1774404635289,-500.0,0.00014838,2]
[408894663,1774404635298,-500.0,0.00014838,2]
[408894664,1774404635308,-500.0,0.00014838,2]
[408894665,1774404635317,-500.0,0.00014838,2]
[408894666,1774404635326,-480.0,0.00014838,2]
[408894667,1774404635336,-500.0,0.00014838,2]
[408894668,1774404635345,-500.0,0.00014838,2]
[408894669,1774404635355,-500.0,0.00014838,2]
[408894670,1774404635365,-480.0,0.00014838,2]
[408894671,1774404635374,-500.0,0.00014838,2]
[408894672,1774404635383,-547.0,0.00014838,2]
[408894673,1774404635392,-500.0,0.00014838,2]
[408894674,1774404635402,-500.0,0.00014838,2]
[408894675,1774404635411,-185.87686613,0.00014838,2]
[408894676,1774404635420,-547.0,0.00014838,2]
[408894677,1774404635429,-500.0,0.00014838,2]
[408894678,1774404635439,-500.0,0.00014838,2]
[408894679,1774404635450,-500.0,0.00014838,2]
[408894680,1774404635460,-480.0,0.00014838,2]
[408894681,1774404635472,-150.0,0.00014838,2]
[408894682,1774404635483,-547.0,0.00014838,2]
[408894683,1774404635493,-500.0,0.00014838,2]
[408894684,1774404635505,-500.0,0.00014838,2]
[408894685,1774404635521,-500.0,0.00014838,2]
[408894686,1774404635531,-480.0,0.00014838,2]
[408894687,1774404635541,-547.0,0.00014838,2]
[408894688,1774404635550,-500.0,0.00014838,2]
[408894689,1774404635560,-500.0,0.00014838,2]
[408894690,1774404635569,-500.0,0.00014838,2]
[408894691,1774404635578,-480.0,0.00014838,2]
[408894692,1774404635587,-547.0,0.00014838,2]
[408894693,1774404635596,-500.0,0.00014838,2]
[408894694,1774404635605,-500.0,0.00014838,2]
[408894695,1774404635614,-500.0,0.00014838,2]
[408894696,1774404635622,-480.0,0.00014838,2]
[408894697,1774404635631,-500.0,0.00014838,2]
[408894698,1774404635641,-547.0,0.00014838,2]
[408894699,1774404635650,-500.0,0.00014838,2]
[408894700,1774404635658,-500.0,0.00014838,2]
[408894701,1774404635667,-480.0,0.00014838,2]
[408894702,1774404635676,-500.0,0.00014838,2]
[408894703,1774404635685,-547.0,0.00014838,2]
[408894704,1774404635694,-500.0,0.00014838,2]
[408894705,1774404635703,-500.0,0.00014838,2]
[408894706,1774404635713,-480.0,0.00014838,2]
[408894707,1774404635722,-500.0,0.00014838,2]
[408894708,1774404635732,-547.0,0.00014838,2]
[408894709,1774404635741,-500.0,0.00014838,2]
[408894710,1774404635751,-500.0,0.00014838,2]
[408894711,1774404635760,-500.0,0.00014838,2]
[408894712,1774404635769,-480.0,0.00014838,2]
[408894713,1774404635779,-547.0,0.00014838,2]
[408894714,1774404635788,-500.0,0.00014838,2]
[408894715,1774404635798,-298.8604225,0.00014838,2]
[408894716,1774404635808,-500.0,0.00014838,2]
[408894717,1774404635818,-480.0,0.00014838,2]
[408894718,1774404635828,-547.0,0.00014838,2]
[408894719,1774404635837,-500.0,0.00014838,2]
[408894720,1774404635846,-500.0,0.00014838,2]
[408894721,1774404635856,-480.0,0.00014838,2]
[408894722,1774404635865,-547.0,0.00014838,2]
[408894723,1774404635874,-500.0,0.00014838,2]
[408894724,1774404635883,-500.0,0.00014838,2]
[408894725,1774404635892,-500.0,0.00014838,2]
[408894726,1774404635901,-547.0,0.00014838,2]
[408894727,1774404635910,-500.0,0.00014838,2]
[408894728,1774404635919,-500.0,0.00014838,2]
[408894729,1774404635928,-480.0,0.00014838,2]
[408894730,1774404635938,-500.0,0.00014838,2]
[408894731,1774404635947,-500.0,0.00014838,2]
[408894732,1774404635956,-547.0,0.00014838,2]
[408894733,1774404635964,-435.09480633,0.00014838,2]
[408894734,1774404635974,-569.02898798,0.00014838,2]
[408894735,1774404635984,-480.0,0.00014838,2]
[408894736,1774404635993,-547.0,0.00014838,2]
[408894737,1774404636003,-150.0,0.00014838,2]
[408894738,1774404636012,-480.0,0.00014838,2]
[408894739,1774404636022,-547.0,0.00014838,2]
[408894740,1774404636031,-480.0,0.00014838,2]
[408894741,1774404636041,-547.0,0.00014838,2]
[408894742,1774404636051,-480.0,0.00014838,2]
[408894743,1774404636061,-547.0,0.00014838,2]
[408894744,1774404636070,-480.0,0.00014838,2]
[408894745,1774404636080,-547.0,0.00014838,2]
[408894746,1774404636089,-338.74886884,0.00014838,2]
[408894747,1774404636098,-565.32010138,0.00014838,2]
[408894748,1774404636107,-150.0,0.00014838,2]
[408894749,1774404636117,-500.0,0.00014838,2]
[408894750,1774404636126,-500.0,0.00014849,2]
[408894751,1774404636137,-150.0,0.00014854,2]
[408894752,1774404636146,-500.0,0.00014873,2]
[408894753,1774404636157,-500.30562592,0.00014873,2]
[408894754,1774404636167,-500.0,0.00014873,2]
[408894755,1774404636178,-519954.37483653,0.0001489,2]
[408894756,1774404636902,-44900.32692581,0.0001489,2]
[408894757,1774404636913,-80260.96548839,0.0001489,2]
[408894758,1774404636925,-3766.60401429,0.0001489,2]
[408894759,1774404636936,-580.32694609,0.0001489,2]
[408894760,1774404637015,-280.63250004,0.0001489,2]
[408894761,1774404637027,-462.46160238,0.0001489,2]
[408894773,1774404639062,-200.0,0.00013699,2]
[408894774,1774404639072,-1446.98551907,0.0001489,2]
[408894778,1774404640664,-704.52908455,0.0001489,2]
[408894779,1774404641175,-8793.57821063,0.0001489,2]
[408894780,1774404641187,-8947.21879473,0.0001489,2]
[408894781,1774404641199,-8943.78386462,0.0001489,2]
[408894782,1774404641211,-9077.54866152,0.0001489,2]
[408894783,1774404641309,-143582.70025135,0.0001489,2]
[408894784,1774404641318,-500.0,0.00014894,2]
[408894785,1774404641328,-500.0,0.00014894,2]
[408894786,1774404641337,-500.0,0.00014894,2]
[408894787,1774404641346,-500.0,0.00014894,2]
[408894788,1774404641355,-500.0,0.00014894,2]
[408894789,1774404641364,-500.0,0.00014894,2]
[408894790,1774404641373,-500.0,0.00014894,2]
[408894791,1774404641383,-500.0,0.00014894,2]
[408894792,1774404641391,-500.0,0.00014894,2]
[408894793,1774404641401,-500.0,0.00014894,2]
[408894794,1774404641410,-500.0,0.00014894,2]
[408894795,1774404641418,-500.0,0.00014894,2]
[408894796,1774404641428,-500.0,0.00014894,2]
[408894797,1774404641438,-627.27169566,0.00014894,2]
[408894798,1774404641447,-500.0,0.00014894,2]
[408894799,1774404641458,-500.0,0.00014894,2]
[408894800,1774404641469,-500.0,0.00014894,2]
[408894801,1774404641479,-500.0,0.00014894,2]
[408894802,1774404641489,-638.76253534,0.00014894,2]
[408894803,1774404641499,-168.23310887,0.00014899,2]
[408894804,1774404641512,-154.26142664,0.00014965,2]
[408894805,1774404641521,-500.0,0.00014981,2]
[408894806,1774404641530,-500.0,0.00014981,2]
[408894807,1774404641539,-500.0,0.00014981,2]
[408894808,1774404641550,-200.0,0.00014981,2]
[408894809,1774404641560,-500.0,0.00014981,2]
[408894810,1774404641570,-177.92631332,0.00014981,2]
[408894811,1774404641582,-501.77371947,0.00014981,2]
[408894812,1774404641591,-151.0,0.00014981,2]
[408894813,1774404641600,-151.0,0.00014981,2]
[408894814,1774404641610,-151.0,0.00014981,2]
[408894815,1774404641620,-151.0,0.00014981,2]
[408894816,1774404641629,-151.0,0.00014981,2]
[408894817,1774404641639,-175.19989913,0.00014981,2]
[408894818,1774404641648,-500.0,0.00014981,2]
[408894819,1774404641658,-151.0,0.00014981,2]
[408894820,1774404641667,-500.0,0.00014981,2]
[408894821,1774404641676,-500.0,0.00014981,2]
[408894822,1774404641686,-500.0,0.00014981,2]
[408894823,1774404641696,-151.0,0.00014981,2]
[408894824,1774404641706,-500.0,0.00014981,2]
[408894825,1774404641715,-151.0,0.00014981,2]
[408894826,1774404641725,-500.0,0.00014981,2]
[408894827,1774404641734,-151.0,0.00014981,2]
[408894828,1774404641743,-500.0,0.00014981,2]
[408894829,1774404641753,-151.0,0.00014981,2]
[408894830,1774404641763,-500.0,0.00014981,2]
[408894831,1774404641773,-151.0,0.00014981,2]
[408894832,1774404641782,-500.0,0.00014981,2]
[408894833,1774404641791,-151.0,0.00014981,2]
[408894834,1774404641800,-500.0,0.00014981,2]
[408894835,1774404641809,-151.0,0.00014981,2]
[408894836,1774404641819,-584.87479624,0.00014981,2]
[408894837,1774404641828,-151.0,0.00014981,2]
[408894838,1774404641838,-151.0,0.00014981,2]
[408894839,1774404641847,-151.0,0.00014981,2]
[408894840,1774404641856,-151.0,0.00014981,2]
[408894841,1774404641866,-500.0,0.00014999,2]
[408894842,1774404641875,-500.0,0.00015,5]
[408894843,1774404641884,-500.0,0.00015,2]
[408894844,1774404641894,-500.0,0.00015,2]
[408894845,1774404641903,-500.0,0.00015,2]
[408894846,1774404641913,-500.0,0.00015,2]
[408894847,1774404641922,-500.0,0.00015,2]
[408894848,1774404641931,-500.0,0.00015,2]
[408894849,1774404641940,-500.0,0.00015,2]
[408894850,1774404641949,-500.0,0.00015,2]
[408894851,1774404641958,-500.0,0.00015,2]
[408894852,1774404641968,-500.0,0.00015,2]
[408894853,1774404641977,-500.0,0.00015,2]
[408894854,1774404641987,-500.0,0.00015,2]
[408894855,1774404641996,-513.53,0.00015,2]
[408894856,1774404642006,-300.0,0.00015,2]
[408894857,1774404642015,-500.0,0.00015,2]
[408894858,1774404642025,-500.0,0.00015,2]
[408894859,1774404642034,-198.39780813,0.00015,2]
[408894860,1774404642044,-500.0,0.00015,2]
[408894861,1774404642054,-161.49108402,0.00015,2]
[408894862,1774404642064,-500.0,0.00015,2]
[408894863,1774404642074,-416.2,0.00015047,2]
[408894864,1774404642083,-419.81,0.00015047,2]
[408894865,1774404642093,-500.0,0.00015068,2]
[408894866,1774404642103,-1100.0,0.000151,5]
[408894867,1774404642113,-1000.0,0.000151,2]
[408894868,1774404642123,-500.0,0.00015112,2]
[408894869,1774404642133,-501.9381961,0.00015129,2]
[408894870,1774404642142,-504.27664623,0.00015129,2]
[408894871,1774404642153,-151.0,0.00015132,2]
[408894872,1774404642163,-500.0,0.00015132,2]
[408894873,1774404642172,-9552.16786547,0.00015132,2]
[408894874,1774404642182,-721.12765535,0.00015132,2]
[408894875,1774404642191,-578.20924308,0.00015132,2]
[408894876,1774404642201,-500.0,0.00015132,2]
[408894877,1774404642211,-500.0,0.00015132,2]
[408894878,1774404642220,-500.0,0.00015132,2]
[408894879,1774404642229,-500.0,0.00015132,2]
[408894880,1774404642239,-500.0,0.00015132,2]
[408894881,1774404642248,-500.0,0.00015132,2]
[408894882,1774404642258,-500.0,0.00015132,2]
[408894883,1774404642267,-500.0,0.00015132,2]
[408894884,1774404642276,-500.0,0.00015132,2]
[408894885,1774404642286,-500.0,0.00015132,2]
[408894886,1774404642296,-500.0,0.00015132,2]
[408894887,1774404642306,-500.0,0.00015132,2]
[408894888,1774404642316,-500.0,0.00015132,2]
[408894889,1774404642326,-500.0,0.00015132,2]
[408894890,1774404642336,-500.0,0.00015132,2]
[408894891,1774404642345,-500.0,0.00015132,2]
[408894892,1774404642355,-500.0,0.00015132,2]
[408894893,1774404642366,-500.0,0.00015132,2]
[408894894,1774404642376,-500.0,0.00015132,2]
[408894895,1774404642386,-500.0,0.00015132,2]
[408894896,1774404642396,-500.0,0.00015132,2]
[408894897,1774404642406,-500.0,0.00015132,2]
[408894898,1774404642415,-500.0,0.00015132,2]
[408894899,1774404642424,-500.0,0.00015132,2]
[408894900,1774404642434,-500.0,0.00015132,2]
[408894901,1774404642443,-500.0,0.00015132,2]
[408894902,1774404642453,-200.0,0.00015132,2]
[408894903,1774404642462,-500.0,0.00015132,2]
[408894904,1774404642472,-500.0,0.00015132,2]
[408894905,1774404642484,-500.0,0.00015132,2]
[408894906,1774404642493,-500.0,0.00015132,2]
[408894907,1774404642505,-151.0,0.00015132,2]
[408894908,1774404642520,-500.0,0.00015132,2]
[408894909,1774404642529,-174.61919141,0.00015132,2]
[408894910,1774404642538,-500.0,0.00015132,2]
[408894911,1774404642549,-500.0,0.00015132,2]
[408894912,1774404642559,-250.0,0.00015132,2]
[408894913,1774404642569,-250.0,0.00015132,2]
[408894914,1774404642580,-250.0,0.00015132,2]
[408894915,1774404642590,-250.0,0.00015132,2]
[408894916,1774404642600,-250.0,0.00015132,2]
[408894917,1774404642610,-209.40437684,0.00015132,2]
[408894918,1774404642620,-250.0,0.00015132,2]
[408894919,1774404642631,-250.0,0.00015132,2]
[408894920,1774404642641,-250.0,0.00015132,2]
[408894921,1774404642651,-250.0,0.00015132,2]
[408894922,1774404642660,-693.3919763,0.00015132,2]
[408894923,1774404642669,-250.0,0.00015132,2]
[408894924,1774404642679,-151.08524853,0.00015132,2]
[408894925,1774404642689,-250.0,0.00015132,2]
[408894926,1774404642699,-743.50770149,0.00015132,2]
[408894927,1774404642709,-262.90206542,0.00015132,2]
[408894928,1774404642718,-209.40437684,0.00015132,2]
[408894929,1774404642728,-279.9045709,0.00015132,2]
[408894930,1774404642737,-500.0,0.00015132,2]
[408894931,1774404642747,-500.0,0.00015132,2]
[408894932,1774404642757,-500.0,0.00015132,2]
[408894933,1774404642767,-500.0,0.00015132,2]
[408894934,1774404642776,-500.0,0.00015132,2]
[408894935,1774404642785,-150.0,0.00015151,2]
[408894936,1774404642795,-7280.52755687,0.00015183,2]
[408894937,1774404642805,-500.0,0.00015187,2]
[408894938,1774404642815,-9905.5980765,0.00015187,2]
[408894939,1774404642825,-151.0,0.00015187,2]
[408894940,1774404642834,-272.62944185,0.00015187,2]
[408894941,1774404642844,-823.98970667,0.00015196,2]
[408894942,1774404642853,-150.011093,0.000152,2]
[408894943,1774404642863,-1700.0,0.000152,5]
[408894944,1774404642872,-2500.0,0.0001521,2]
[408894945,1774404642882,-189.14027323,0.00015232,2]
[408894946,1774404642891,-500.0,0.00015242,2]
[408894947,1774404642912,-10272.10520533,0.00015242,2]
[408894948,1774404642922,-151.0,0.00015242,2]
[408894949,1774404642931,-282.71673119,0.00015242,2]
[408894950,1774404642940,-391.79519,0.00015255,7]
[408894951,1774404642950,-500.0,0.0001526,2]
[408894952,1774404642960,-7280.5275568,0.00015263,2]
[408894953,1774404642970,-979.16666667,0.00015283,2]
[408894954,1774404642979,-160.0,0.00015283,2]
[408894955,1774404642989,-500.0,0.00015297,2]
[408894956,1774404642999,-10652.17309792,0.00015297,2]
[408894957,1774404643008,-151.0,0.00015297,2]
[408894958,1774404643018,-293.17725025,0.00015297,2]
[408894959,1774404643027,-2200.0,0.000153,5]
[408894960,1774404643036,-2761.97,0.0001531,2]
[408894961,1774404643046,-20692.88,0.0001531,2]
[408894962,1774404643055,-1192.0,0.00015335,2]
[408894963,1774404643065,-2270.59,0.00015342,2]
[408894964,1774404643074,-7280.5275568,0.00015342,2]
[408894965,1774404643085,-1192.0,0.00015345,2]
[408894966,1774404643094,-11046.30350255,0.00015352,2]
[408894967,1774404643103,-500.0,0.00015352,2]
[408894968,1774404643112,-151.0,0.00015352,2]
[408894969,1774404643121,-304.02480851,0.00015352,2]
[408894970,1774404643130,-890.51551176,0.00015353,2]
[408894971,1774404643139,-255.0,0.00015357,2]
[408894972,1774404643149,-4710.13748699,0.00015362,2]
[408894973,1774404643158,-366.41,0.00015378,2]
[408894974,1774404643167,-467.18599342,0.00015386,2]
[408894975,1774404643176,-1192.0,0.00015393,2]
[408894976,1774404643186,-2800.0,0.000154,5]
[408894977,1774404643196,-366.62,0.00015402,2]
[408894979,1774404643205,-416.21,0.00015402,2]
[408894981,1774404643215,-11455.01673214,0.00015407,2]
[408894982,1774404643224,-500.0,0.00015407,2]
[408894983,1774404643233,-151.0,0.00015407,2]
[408894984,1774404643242,-315.27372642,0.00015407,2]
[408894985,1774404643251,-1000.0,0.00015421,2]
[408894986,1774404643260,-1000.0,0.00015421,2]
[408894987,1774404643269,-7280.5275568,0.00015422,2]
[408894989,1774404643278,-420.0,0.00015425,2]
[408894991,1774404643287,-166.67,0.00015434,2]
[408894992,1774404643297,-4710.13748692,0.00015439,2]
[408894993,1774404643306,-1500.0,0.00015452,2]
[408894994,1774404643316,-1100.0,0.00015452,2]
[408894995,1774404643325,-11878.85235123,0.00015462,2]
[408894997,1774404643334,-500.0,0.00015462,2]
[408894998,1774404643343,-151.0,0.00015462,2]
[408894999,1774404643352,-326.9388543,0.00015462,2]
[408895000,1774404643361,-352.84292676,0.00015469,2]
[408895001,1774404643370,-1192.0,0.00015485,2]
[408895002,1774404643380,-1680.0,0.00015489,2]
[408895003,1774404643389,-500.0,0.000155,5]
[408895004,1774404643398,-500.0,0.00015501,2]
[408895005,1774404643407,-500.0,0.00015501,2]
[408895006,1774404643416,-615.86675663,0.00015501,2]
[408895007,1774404643425,-293.89272456,0.00015501,2]
[408895008,1774404643433,-500.0,0.00015501,2]
[408895009,1774404643442,-500.0,0.00015501,2]
[408895010,1774404643451,-500.0,0.00015501,2]
[408895011,1774404643460,-500.0,0.00015501,2]
[408895012,1774404643469,-250.72845608,0.00015501,2]
[408895013,1774404643477,-500.0,0.00015501,2]
[408895014,1774404643486,-500.0,0.00015501,2]
[408895015,1774404643495,-500.0,0.00015501,2]
[408895016,1774404643505,-394.56053939,0.00015501,2]
[408895017,1774404643517,-7280.5275568,0.00015502,2]
[408895018,1774404643526,-5638.0,0.00015506,2]
[408895019,1774404643535,-4710.13748692,0.00015516,2]
[408895020,1774404643544,-12318.36988823,0.00015517,2]
[408895021,1774404643553,-500.0,0.00015517,2]
[408895022,1774404643563,-151.0,0.00015517,2]
[408895023,1774404643572,-339.03559191,0.00015517,2]
[408895024,1774404643582,-200.0,0.00015529,2]
[408895025,1774404643591,-900.0,0.00015545,2]
[408895026,1774404643600,-667.05035616,0.00015548,2]
[408895027,1774404643609,-1000.0,0.00015548,2]
[408895028,1774404643618,-1000.0,0.00015548,2]
[408895029,1774404643627,-1000.0,0.00015548,2]